fUSD/lending_fUSD_20260122
["ID","MTS","AMOUNT","RATE_DAILY","PERIOD"]
[403016747,1769065831982,-221.0,0.00016599,2]
[403016748,1769065831991,-679.42511631,0.00016667,2]
[403016749,1769065831999,-300.0,0.00016699,2]
[403016750,1769065832008,-150.00129237,0.00016726,2]
[403016751,1769065832017,-63.02635798,0.00016815,2]
[403016752,1769065832026,-5533.0,0.000172,5]
[403016753,1769065832035,-151.0,0.000172,2]
[403016754,1769065832045,-165.0,0.00017205,2]
[403016755,1769065832054,-4477.71814456,0.00017209,2]
[403016756,1769065832062,-941.74,0.00017284,2]
[403016757,1769065832071,-166.67,0.00017303,2]
[403016758,1769065832081,-150.0,0.00017306,2]
[403016759,1769065832090,-151.0,0.00017306,2]
[403016760,1769065832098,-33324.42181433,0.00017309,2]
[403016765,1769065832670,-1837.45735707,0.00017309,2]
[403016766,1769065832689,-964838.1208286,0.00017309,2]
[403016767,1769065832698,-158.97,0.00017332,2]
[403016768,1769065832707,-1905.4497146,0.00017362,2]
[403016769,1769065832716,-1000.0,0.00017408,2]
[403016770,1769065832725,-681.0,0.00017409,2]
[403016771,1769065832734,-30645.26,0.00017409,2]
[403016772,1769065832742,-9999.99,0.00017409,2]
[403016773,1769065832751,-14326.0932865,0.0001744,2]
[403016774,1769065832760,-2483.0452,0.00017441,2]
[403016775,1769065832770,-200.0,0.00017489,2]
[403016776,1769065832779,-500.0,0.00017489,2]
[403016777,1769065832788,-500.0,0.00017489,2]
[403016778,1769065832797,-500.0,0.00017489,2]
[403016779,1769065832805,-500.0,0.00017489,2]
[403016780,1769065832814,-500.0,0.00017489,2]
[403016781,1769065832823,-3236.17290723,0.000175,2]
[403016782,1769065832833,-500.0,0.00017531,2]
[403016783,1769065832841,-500.0,0.00017531,2]
[403016784,1769065832850,-202.79854214,0.00017531,2]
[403016785,1769065832859,-500.0,0.00017531,2]
[403016786,1769065832868,-500.0,0.00017531,2]
[403016787,1769065832878,-500.0,0.00017531,2]
[403016788,1769065832887,-500.0,0.00017531,2]
[403016789,1769065832896,-500.0,0.00017531,2]
[403016790,1769065832904,-151.0,0.00017531,2]
[403016791,1769065832913,-500.0,0.00017531,2]
[403016792,1769065832923,-151.0,0.00017531,2]
[403016793,1769065832931,-500.0,0.00017531,2]
[403016794,1769065832940,-500.0,0.00017531,2]
[403016795,1769065832949,-151.0,0.00017531,2]
[403016796,1769065832958,-500.0,0.00017531,2]
[403016797,1769065832967,-214.99188165,0.00017531,2]
[403016798,1769065832975,-151.0,0.00017531,2]
[403016799,1769065832984,-151.0,0.00017531,2]
[403016800,1769065832993,-500.0,0.00017531,2]
[403016801,1769065833002,-151.0,0.00017531,2]
[403016802,1769065833011,-500.0,0.00017531,2]
[403016803,1769065833020,-151.0,0.00017531,2]
[403016804,1769065833030,-500.0,0.00017531,2]
[403016805,1769065833039,-151.0,0.00017531,2]
[403016806,1769065833049,-500.0,0.00017531,2]
[403016807,1769065833059,-151.0,0.00017531,2]
[403016808,1769065833068,-500.0,0.00017531,2]
[403016809,1769065833077,-151.0,0.00017531,2]
[403016810,1769065833087,-500.0,0.00017531,2]
[403016811,1769065833096,-151.0,0.00017531,2]
[403016812,1769065833105,-513.33860981,0.00017531,2]
[403016813,1769065833115,-151.0,0.00017531,2]
[403016814,1769065833124,-601.01,0.00017531,2]
[403016815,1769065833133,-515.235,0.0001754,2]
[403016816,1769065833142,-187.88317172,0.0001754,2]
[403016817,1769065833151,-500.0,0.0001754,2]
[403016818,1769065833160,-500.0,0.0001754,2]
[403016819,1769065833169,-347.8057822,0.0001754,2]
[403016820,1769065833178,-151.0,0.0001754,2]
[403016821,1769065833187,-151.0,0.0001754,2]
[403016822,1769065833196,-151.0,0.0001754,2]
[403016823,1769065833205,-151.0,0.0001754,2]
[403016824,1769065833215,-151.0,0.0001754,2]
[403016825,1769065833224,-151.0,0.0001754,2]
[403016826,1769065833233,-500.0,0.0001754,2]
[403016827,1769065833242,-500.0,0.0001754,2]
[403016828,1769065833252,-500.0,0.0001754,2]
[403016829,1769065833262,-500.0,0.0001754,2]
[403016830,1769065833272,-151.0,0.0001754,2]
[403016831,1769065833282,-151.0,0.0001754,2]
[403016832,1769065833309,-396.63383466,0.0001754,2]
[403016833,1769065833319,-3280.0,0.00017541,2]
[403016834,1769065833328,-273.82656742,0.00017541,2]
[403016835,1769065833338,-151.0,0.00017541,2]
[403016836,1769065833347,-151.0,0.00017541,2]
[403016837,1769065833356,-151.0,0.00017541,2]
[403016838,1769065833366,-151.0,0.00017541,2]
[403016839,1769065833375,-151.0,0.00017541,2]
[403016840,1769065833385,-151.0,0.00017541,2]
[403016841,1769065833395,-4741.49169729,0.00017541,2]
[403016842,1769065833405,-166.66,0.00017641,2]
[403016843,1769065833414,-14386.60481667,0.00017653,2]
[403016844,1769065833424,-151.11819468,0.00017689,2]
[403016845,1769065833433,-150.0,0.00017689,2]
[403016846,1769065833443,-214.37943782,0.00017689,2]
[403016847,1769065833451,-500.0,0.00017689,2]
[403016848,1769065833461,-150.0,0.00017689,2]
[403016849,1769065833471,-500.0,0.00017689,2]
[403016850,1769065833482,-150.0,0.00017689,2]
[403016851,1769065833491,-500.0,0.00017689,2]
[403016852,1769065833500,-150.0,0.00017689,2]
[403016853,1769065833511,-500.0,0.00017689,2]
[403016854,1769065833521,-500.0,0.00017689,2]
[403016855,1769065833531,-150.0,0.00017689,2]
[403016856,1769065833540,-1100.0,0.000177,6]
[403016857,1769065833550,-195.54000176,0.00017703,2]
[403016858,1769065833560,-937.61854358,0.00017721,2]
[403016859,1769065833570,-157.676088,0.00017728,2]
[403016860,1769065833580,-151.0,0.00017728,2]
[403016861,1769065833589,-151.0,0.00017728,2]
[403016862,1769065833598,-151.0,0.00017728,2]
[403016863,1769065833607,-150.0,0.00017744,2]
[403016864,1769065833616,-500.0,0.00017744,2]
[403016865,1769065833626,-150.0,0.00017744,2]
[403016866,1769065833637,-500.0,0.00017744,2]
[403016867,1769065833648,-150.0,0.00017744,2]
[403016868,1769065833657,-500.0,0.00017744,2]
[403016869,1769065833666,-150.0,0.00017744,2]
[403016870,1769065833676,-500.0,0.00017744,2]
[403016871,1769065833685,-500.0,0.00017744,2]
[403016872,1769065833695,-194.72585523,0.00017744,2]
[403016873,1769065833704,-151.0,0.0001777,2]
[403016874,1769065833713,-151.0,0.0001777,2]
[403016875,1769065833722,-151.0,0.0001777,2]
[403016876,1769065833731,-151.0,0.0001777,2]
[403016877,1769065833741,-151.0,0.0001777,2]
[403016878,1769065833750,-151.0,0.0001777,2]
[403016879,1769065833759,-207.77651515,0.00017799,2]
[403016880,1769065833768,-500.0,0.00017799,2]
[403016881,1769065833778,-150.0,0.00017799,2]
[403016882,1769065833787,-500.0,0.00017799,2]
[403016883,1769065833797,-200.0,0.00017799,2]
[403016884,1769065833807,-500.0,0.00017799,2]
[403016885,1769065833816,-200.0,0.00017799,2]
[403016886,1769065833826,-500.0,0.00017799,2]
[403016887,1769065833835,-500.0,0.00017799,2]
[403016888,1769065833844,-2300.0,0.000178,6]
[403016889,1769065833854,-601.01,0.00017805,2]
[403016890,1769065833863,-636.89483016,0.00017853,2]
[403016891,1769065833873,-500.0,0.00017853,2]
[403016892,1769065833883,-160.8165198,0.00017853,2]
[403016893,1769065833893,-500.0,0.00017853,2]
[403016894,1769065833902,-500.0,0.00017853,2]
[403016895,1769065833912,-500.0,0.00017853,2]
[403016896,1769065833921,-500.0,0.00017853,2]
[403016897,1769065833931,-283.42,0.00017875,2]
[403016898,1769065833941,-1000.0,0.000179,2]
[403016899,1769065833950,-3400.0,0.000179,6]
[403016900,1769065833959,-937.61854358,0.000179,2]
[403016901,1769065833968,-500.0,0.00017908,2]
[403016902,1769065833978,-500.0,0.00017908,2]
[403016903,1769065833987,-500.0,0.00017908,2]
[403016904,1769065833997,-500.0,0.00017908,2]
[403016905,1769065834006,-500.0,0.00017908,2]
[403016906,1769065834015,-158.97,0.00017959,2]
[403016907,1769065834024,-500.0,0.00017963,2]
[403016908,1769065834034,-500.0,0.00017963,2]
[403016909,1769065834043,-500.0,0.00017963,2]
[403016910,1769065834053,-151.0,0.00017963,2]
[403016911,1769065834062,-289.723041,0.00017963,2]
[403016912,1769065834071,-151.0,0.00017963,2]
[403016913,1769065834080,-151.0,0.00017963,2]
[403016914,1769065834090,-151.0,0.00017963,2]
[403016915,1769065834100,-293.31256,0.00017963,2]
[403016916,1769065834109,-171.49094186,0.0001799,2]
[403016917,1769065834119,-182.609,0.00017999,2]
[403016918,1769065834128,-500.0,0.00017999,2]
[403016919,1769065834137,-500.0,0.00017999,2]
[403016920,1769065834147,-500.0,0.00017999,2]
[403016921,1769065834156,-500.0,0.00017999,2]
[403016922,1769065834166,-263.08,0.00017999,2]
[403016923,1769065834175,-230.97901434,0.00017999,2]
[403016924,1769065834185,-432.2527767,0.00017999,2]
[403016925,1769065834194,-345.37155615,0.00017999,2]
[403016926,1769065834204,-500.0,0.00017999,2]
[403016927,1769065834213,-500.0,0.00017999,2]
[403016928,1769065834227,-458.55701968,0.00017999,2]
[403016929,1769065834236,-1039142.2851558,0.00018,2]
[403016930,1769065834250,-2039.30209576,0.00018,2]
[403016931,1769065834262,-911.77284541,0.00018,2]
[403016933,1769065837700,-12070.31789647,0.00018,2]
[403016934,1769065837742,-3811.00920727,0.00018,2]
[403016935,1769065837753,-348.01441186,0.00018,2]
[403016936,1769065837806,-110383.47843833,0.00018,2]
[403016937,1769065837817,-563.94852852,0.00018,2]
[403016938,1769065837827,-412.68307781,0.00018,2]
[403016939,1769065837863,-10869.68645824,0.00018,2]
[403016967,1769065839723,-1565.8995,0.00018,2]
[403016968,1769065839734,-1235.18161794,0.00018,2]
[403016970,1769065839787,-374.10410906,0.00018,2]
[403016971,1769065839849,-497.12974831,0.00018,2]
[403016972,1769065839860,-986.30642369,0.00018,2]
[403016973,1769065839871,-814.99050741,0.00018,2]
[403016974,1769065839881,-8302.16585858,0.00018,2]
[403016975,1769065839892,-840.8243908,0.00018,2]
[403016976,1769065839903,-1662.18612278,0.00018,2]
[403016977,1769065839913,-4264.09911204,0.00018,2]
[403016978,1769065839966,-394.07870975,0.00018,2]
[403017009,1769065843009,-151.0,0.00017405,2]
[403017010,1769065843019,-1889.11180211,0.00018,2]
[403017011,1769065843031,-602.0124,0.00018,2]
[403017016,1769065845899,-6244.00000002,0.00018,2]
[403017103,1769066235847,500.0,0.000176,30]
[403017104,1769066236253,500.0,0.000176,30]
[403017105,1769066236737,500.0,0.00015158,10]
[403017106,1769066237244,915.07777213,0.00015158,10]
[403017107,1769066242210,500.0,0.000176,30]
[403017108,1769066242666,500.0,0.00015158,10]
[403017109,1769066242719,500.0,0.000176,30]
[403017110,1769066243179,500.0,0.000176,30]
[403017111,1769066243662,500.0,0.000176,30]
[403017112,1769066244159,500.0,0.000176,30]
[403017113,1769066244619,500.0,0.000176,30]
[403017114,1769066245124,500.0,0.00015158,10]
[403017115,1769066245607,500.0,0.00015158,10]
[403017116,1769066246235,500.0,0.00015158,10]
[403017117,1769066246896,500.0,0.00015158,10]
[403017118,1769066247202,653.04580214,0.00015158,10]
[403017119,1769066247378,222.39769026,0.000176,30]
[403017120,1769066247457,500.0,0.000176,30]
[403017121,1769066251510,500.0,0.000176,30]
[403017122,1769066251757,500.0,0.000176,30]
[403017123,1769066252281,500.0,0.000176,30]
[403017124,1769066253128,500.0,0.000176,30]
[403017125,1769066253331,500.0,0.000176,30]
[403017126,1769066253830,500.0,0.00015158,10]
[403017127,1769066254324,500.0,0.00015158,10]
[403017128,1769066254839,500.0,0.00015158,10]
[403017129,1769066255821,566.37679304,0.00015158,10]
[403017178,1769066536447,484.20352824,0.000176,30]
[403017210,1769066748531,3549.69,0.00013346,2]
[403017211,1769066753139,6450.32,0.0001599,2]
[403017212,1769066753163,10000.01,0.0001599,2]
[403017213,1769066753186,10000.01,0.0001599,2]
[403017214,1769066753210,10000.01,0.0001599,2]
[403017215,1769066753233,10000.01,0.0001599,2]
[403017216,1769066753256,10000.01,0.0001599,2]
[403017217,1769066753280,5957.71217777,0.0001599,2]
[403017219,1769066785205,-490.31836322,0.00016077,2]
[403017220,1769066789952,-345.46533407,0.00016077,2]
[403017221,1769066792331,-200.0,0.00016077,2]
[403017222,1769066795564,-202.69968522,0.00016077,2]
[403017223,1769066797873,-356.85502261,0.00016077,2]
[403017224,1769066801095,-173.72034882,0.00016077,2]
[403017225,1769066802763,-227.68463035,0.00016077,2]
[403017226,1769066806735,-394.24572605,0.00016077,2]
[403017227,1769066808826,-182.57215667,0.00016077,2]
[403017228,1769066811672,-320.69241555,0.00016077,2]
[403017229,1769066812225,11040.07779784,0.000162,5]
[403017232,1769066862305,5533.0,0.000149,5]
[403017233,1769066895256,7353.25288923,0.00015,2]
[403017237,1769066909715,1852.42,0.00016003,2]
[403017257,1769066976627,457.22,0.00016,2]
[403017259,1769066990492,4324.71,0.00015877,2]
[403017278,1769067031875,-345.74631744,0.00016077,2]
[403017279,1769067031886,-195.0,0.00016269,2]
[403017280,1769067031895,-155.03186655,0.00016461,2]
[403017281,1769067031905,-375.8377,0.00016461,2]
[403017282,1769067031915,-187.12,0.00016561,2]
[403017283,1769067031925,-151.0,0.00016593,2]
[403017284,1769067031934,-151.0,0.00016593,2]
[403017285,1769067031944,-204.81,0.00016593,2]
[403017286,1769067031953,-151.0,0.00016593,2]
[403017287,1769067031962,-151.0,0.00016593,2]
[403017288,1769067031972,-151.0,0.00016598,2]
[403017289,1769067031981,-187.12,0.00016605,2]
[403017290,1769067031991,-187.12,0.00016648,2]
[403017291,1769067032000,-187.12,0.00016692,2]
[403017292,1769067032010,-187.12,0.00016736,2]
[403017293,1769067032019,-200.0,0.00016779,2]
[403017294,1769067032028,-187.12,0.00016779,2]
[403017295,1769067032037,-1200.0,0.00016807,2]
[403017296,1769067032047,-338.10818297,0.00016808,2]
[403017298,1769067032059,-1683.30832534,0.00016808,2]
[403017299,1769067032068,-300.0,0.00016822,2]
[403017300,1769067032077,-187.12,0.00016823,2]
[403017302,1769067032087,-200.0,0.00016827,2]
[403017304,1769067032097,-187.12,0.00016866,2]
[403017306,1769067032107,-197.95639292,0.0001688,2]
[403017308,1769067032117,-800.0,0.000169,6]
[403017310,1769067032126,-434.0,0.00016909,2]
[403017312,1769067032136,-187.12,0.0001691,2]
[403017313,1769067032145,-151.0,0.00016912,2]
[403017314,1769067032155,-151.0,0.00016912,2]
[403017315,1769067032164,-151.0,0.00016912,2]
[403017316,1769067032173,-139.32616018,0.00016912,2]
[403017317,1769067032188,-11.67383982,0.00016912,2]
[403017318,1769067032197,-151.0,0.00016912,2]
[403017319,1769067032207,-151.0,0.00016912,2]
[403017320,1769067032216,-151.0,0.00016912,2]
[403017321,1769067032225,-151.0,0.00016912,2]
[403017322,1769067032234,-151.0,0.00016912,2]
[403017323,1769067032243,-151.0,0.00016912,2]
[403017324,1769067032252,-102.86664212,0.00016912,2]
[403017325,1769067032264,-48.13335788,0.00016912,2]
[403017326,1769067032273,-151.0,0.00016912,2]
[403017327,1769067032282,-255.05768391,0.00016922,2]
[403017328,1769067032293,-261.63710887,0.00016922,2]
[403017329,1769067032334,-8394.47342278,0.00016922,2]
[403017331,1769067032357,-591.73100237,0.00016922,2]
[403017564,1769067039993,-151.0,0.00016597,2]
[403017565,1769067040003,-497.09078207,0.00016922,2]
[403017566,1769067040013,-150.99,0.00016922,2]
[403017567,1769067040025,-150.00053115,0.00016922,2]
[403017568,1769067040035,-2645.75,0.00016922,2]
[403017569,1769067040044,-432.70528404,0.00016941,2]
[403017570,1769067040054,-187.12,0.00016954,2]
[403017571,1769067040064,-151.0,0.00016997,2]
[403017572,1769067040074,-150.0,0.00016997,2]
[403017573,1769067040084,-187.12,0.00016997,2]
[403017574,1769067040093,-499.58369012,0.00016999,2]
[403017575,1769067040102,-500.0,0.00016999,2]
[403017576,1769067040112,-500.0,0.00016999,2]
[403017577,1769067040122,-500.0,0.00016999,2]
[403017578,1769067040131,-500.0,0.00016999,2]
[403017579,1769067040140,-437.87358604,0.00016999,2]
[403017580,1769067040149,-500.0,0.00016999,2]
[403017581,1769067040159,-500.0,0.00016999,2]
[403017582,1769067040168,-500.0,0.00016999,2]
[403017583,1769067040178,-500.0,0.00016999,2]
[403017584,1769067040187,-500.0,0.00016999,2]
[403017585,1769067040196,-500.0,0.00016999,2]
[403017586,1769067040205,-500.0,0.00016999,2]
[403017587,1769067040216,-500.0,0.00016999,2]
[403017588,1769067040226,-500.0,0.00016999,2]
[403017589,1769067040235,-500.0,0.00016999,2]
[403017590,1769067040244,-500.0,0.00016999,2]
[403017591,1769067040254,-500.0,0.00016999,2]
[403017592,1769067040264,-500.0,0.00016999,2]
[403017593,1769067040273,-500.0,0.00016999,2]
[403017594,1769067040283,-500.0,0.00016999,2]
[403017595,1769067040292,-500.0,0.00016999,2]
[403017596,1769067040302,-500.0,0.00016999,2]
[403017597,1769067040311,-500.0,0.00016999,2]
[403017598,1769067040321,-500.0,0.00016999,2]
[403017599,1769067040330,-500.0,0.00016999,2]
[403017600,1769067040339,-500.0,0.00016999,2]
[403017601,1769067040350,-439.63494081,0.00016999,2]
[403017602,1769067040359,-485.29938199,0.00016999,2]
[403017603,1769067040368,-500.0,0.00016999,2]
[403017604,1769067040377,-500.0,0.00016999,2]
[403017605,1769067040386,-500.0,0.00016999,2]
[403017606,1769067040395,-500.0,0.00016999,2]
[403017607,1769067040405,-500.0,0.00016999,2]
[403017608,1769067040414,-500.0,0.00016999,2]
[403017609,1769067040423,-500.0,0.00016999,2]
[403017610,1769067040439,-500.0,0.00016999,2]
[403017611,1769067040448,-500.0,0.00016999,2]
[403017612,1769067040458,-500.0,0.00016999,2]
[403017613,1769067040467,-500.0,0.00016999,2]
[403017614,1769067040476,-500.0,0.00016999,2]
[403017615,1769067040486,-500.0,0.00016999,2]
[403017616,1769067040496,-500.0,0.00016999,2]
[403017617,1769067040505,-500.0,0.00016999,2]
[403017618,1769067040515,-500.0,0.00016999,2]
[403017619,1769067040525,-500.0,0.00016999,2]
[403017620,1769067040534,-500.0,0.00016999,2]
[403017621,1769067040544,-500.0,0.00016999,2]
[403017622,1769067040553,-500.0,0.00016999,2]
[403017623,1769067040563,-500.0,0.00016999,2]
[403017624,1769067040572,-500.0,0.00016999,2]
[403017625,1769067040581,-500.0,0.00016999,2]
[403017626,1769067040590,-500.0,0.00016999,2]
[403017627,1769067040599,-500.0,0.00016999,2]
[403017629,1769067040608,-500.0,0.00016999,2]
[403017630,1769067040617,-500.0,0.00016999,2]
[403017631,1769067040626,-500.0,0.00016999,2]
[403017632,1769067040636,-250.0,0.00017,2]
[403017633,1769067040645,-940959.16314178,0.00017,2]
[403017634,1769067040660,-1090.0512326,0.00017,2]
[403017635,1769067040681,-1151.08354961,0.00017,2]
[403017637,1769067040692,-803.54673958,0.00017,2]
[403017638,1769067040704,-939.5203092,0.00017,2]
[403017639,1769067040901,-1.7e-07,0.00017,2]
[403017640,1769067040985,-5533.0,0.00017,2]
[403017646,1769067042984,-1028.17,0.00016524,2]
[403017647,1769067042994,-82.61417923,0.00017,2]
[403017648,1769067043014,-7491.64824322,0.00017,2]
[403017649,1769067043060,-20043.75924327,0.00017,2]
[403017650,1769067043121,-1366.56939996,0.00017,2]
[403017651,1769067043133,-695.30475903,0.00017,2]
[403017657,1769067045883,-942.31081747,0.00017,2]
[403017658,1769067045955,-18901.42838488,0.00017,2]
[403017659,1769067045965,-187.12,0.00017041,2]
[403017660,1769067045975,-200.0,0.00017081,2]
[403017661,1769067045985,-187.12,0.00017084,2]
[403017662,1769067045995,-559.09288226,0.00017101,2]
[403017663,1769067046004,-187.12,0.00017128,2]
[403017664,1769067046014,-187.12,0.00017171,2]
[403017665,1769067046024,-1368.91364936,0.00017187,2]
[403017666,1769067046034,-1000.0,0.00017209,2]
[403017667,1769067046044,-1115.1813,0.00017209,2]
[403017668,1769067046054,-2500.0,0.00017209,2]
[403017669,1769067046063,-187.12,0.00017215,2]
[403017670,1769067046072,-294.17562778,0.00017241,2]
[403017671,1769067046082,-4824.56036041,0.00017246,2]
[403017672,1769067046092,-187.12,0.00017259,2]
[403017673,1769067046102,-725.74666468,0.00017282,2]
[403017674,1769067046112,-668.28,0.00017299,2]
[403017675,1769067046122,-187.12,0.00017302,2]
[403017676,1769067046132,-500.0,0.00017308,2]
[403017677,1769067046142,-500.0,0.00017308,2]
[403017678,1769067046152,-500.0,0.00017308,2]
[403017679,1769067046161,-500.0,0.00017308,2]
[403017680,1769067046170,-500.0,0.00017308,2]
[403017681,1769067046180,-500.0,0.00017308,2]
[403017682,1769067046189,-500.0,0.00017308,2]
[403017683,1769067046198,-500.0,0.00017308,2]
[403017684,1769067046208,-500.0,0.00017308,2]
[403017685,1769067046217,-565.72524069,0.00017308,2]
[403017686,1769067046228,-152.42041402,0.00017308,2]
[403017687,1769067046237,-500.0,0.00017308,2]
[403017688,1769067046247,-500.0,0.00017308,2]
[403017689,1769067046257,-187.12,0.00017346,2]
[403017690,1769067046266,-291.96,0.00017384,2]
[403017691,1769067046276,-187.12,0.00017389,2]
[403017692,1769067046290,-432.70528404,0.00017421,2]
[403017693,1769067046300,-500.0,0.0001754,2]
[403017694,1769067046309,-500.0,0.0001754,2]
[403017695,1769067046319,-500.0,0.0001754,2]
[403017696,1769067046329,-500.0,0.0001754,2]
[403017697,1769067046339,-191.97271528,0.0001754,2]
[403017698,1769067046349,-502.74389622,0.0001754,2]
[403017699,1769067046359,-204.87643033,0.0001754,2]
[403017700,1769067046369,-668.28,0.00017573,2]
[403017701,1769067046379,-195.0,0.00017684,2]
[403017702,1769067046389,-195.0,0.00017684,2]
[403017703,1769067046399,-302.93771554,0.00017684,2]
[403017705,1769067046409,-252.94927713,0.00017684,2]
[403017707,1769067046418,-195.0,0.00017684,2]
[403017708,1769067046428,-250.0,0.00017684,2]
[403017709,1769067046438,-150.0,0.00017689,2]
[403017710,1769067046448,-150.0,0.00017689,2]
[403017711,1769067046457,-199.55762914,0.00017689,2]
[403017712,1769067046467,-500.0,0.00017689,2]
[403017713,1769067046477,-500.0,0.00017689,2]
[403017714,1769067046488,-500.0,0.00017689,2]
[403017715,1769067046497,-500.0,0.00017689,2]
[403017716,1769067046508,-150.0,0.00017689,2]
[403017717,1769067046518,-150.0,0.00017689,2]
[403017718,1769067046529,-150.0,0.00017689,2]
[403017719,1769067046538,-150.0,0.00017744,2]
[403017720,1769067046548,-150.0,0.00017744,2]
[403017721,1769067046557,-500.0,0.00017744,2]
[403017722,1769067046567,-500.0,0.00017744,2]
[403017723,1769067046577,-500.0,0.00017744,2]
[403017724,1769067046587,-500.0,0.00017744,2]
[403017725,1769067046597,-150.0,0.00017744,2]
[403017726,1769067046606,-202.06832046,0.00017799,2]
[403017727,1769067046616,-204.1164927,0.00017799,2]
[403017728,1769067046625,-500.0,0.00017799,2]
[403017729,1769067046635,-500.0,0.00017799,2]
[403017730,1769067046644,-500.0,0.00017799,2]
[403017731,1769067046654,-150.0,0.00017799,2]
[403017732,1769067046666,-151.47780679,0.00017799,2]
[403017733,1769067046676,-3009.0,0.000178,2]
[403017734,1769067046685,-1600.0,0.000178,6]
[403017735,1769067046695,-2000.0,0.0001782,2]
[403017736,1769067046705,-2000.0,0.0001782,2]
[403017737,1769067046715,-668.28,0.00017847,2]
[403017738,1769067046725,-500.0,0.00017853,2]
[403017739,1769067046734,-500.0,0.00017853,2]
[403017740,1769067046743,-500.0,0.00017853,2]
[403017741,1769067046753,-150.0,0.00017853,2]
[403017742,1769067046762,-200.0,0.00017856,2]
[403017743,1769067046771,-2400.0,0.000179,6]
[403017744,1769067046781,-432.70528404,0.000179,2]
[403017745,1769067046790,-500.0,0.00017908,2]
[403017746,1769067046800,-500.0,0.00017908,2]
[403017747,1769067046810,-500.0,0.00017908,2]
[403017748,1769067046819,-150.0,0.00017908,2]
[403017749,1769067046828,-500.0,0.00017963,2]
[403017750,1769067046837,-500.0,0.00017963,2]
[403017751,1769067046847,-250.0,0.00017963,2]
[403017752,1769067046855,-171.49094187,0.0001799,2]
[403017753,1769067046865,-314.65335668,0.00017999,2]
[403017754,1769067046874,-360.75985222,0.00017999,2]
[403017755,1769067046884,-500.0,0.00017999,2]
[403017756,1769067046893,-161.68531004,0.00017999,2]
[403017757,1769067046903,-500.0,0.00017999,2]
[403017758,1769067046912,-305.99396794,0.00017999,2]
[403017759,1769067046921,-2349.1849574,0.00018,2]
[403017760,1769067046930,-68157.2118655,0.00018,2]
[403017761,1769067046939,-201.5282903,0.00018,2]
[403017762,1769067046949,-200.0,0.00018,2]
[403017763,1769067046958,-98073.7900504,0.00018,2]
[403017764,1769067046967,-152.32677968,0.00018,2]
[403017765,1769067046976,-282.29477472,0.00018,2]
[403017766,1769067046986,-1000.0,0.00018,2]
[403017767,1769067046995,-1000.0,0.00018,2]
[403017768,1769067047004,-1000.0,0.00018,2]
[403017769,1769067047013,-1000.0,0.00018,2]
[403017770,1769067047022,-1000.0,0.00018,2]
[403017771,1769067047032,-1000.0,0.00018,2]
[403017772,1769067047041,-1000.0,0.00018,2]
[403017773,1769067047054,-1000.0,0.00018,2]
[403017774,1769067047063,-1000.0,0.00018,2]
[403017775,1769067047072,-1000.0,0.00018,2]
[403017776,1769067047082,-1000.0,0.00018,2]